fUSD/lending_fUSD_20260512
["ID","MTS","AMOUNT","RATE_DAILY","PERIOD"]
[422061522,1778539840000,-503.04689126,0.00039737,2]
[422061523,1778539840000,-509.59420307,0.0003977,2]
[422061525,1778539840000,-2478.10624053,0.00039832,2]
[422061524,1778539840000,-160.0,0.000398,120]
[422061519,1778539840000,-350.0,0.00039726,5]
[422061535,1778539840000,-184.43,0.00039923,2]
[422061528,1778539840000,-5800.0,0.00039866,14]
[422061536,1778539840000,-400.0,0.0003997,2]
[422061534,1778539840000,-5800.0,0.000399,14]
[422061530,1778539840000,-5800.0,0.00039883,14]
[422061532,1778539840000,-1613.0535,0.00039899,30]
[422061541,1778539840000,-500.0,0.00039973,5]
[422061542,1778539840000,-270.0,0.00039994,2]
[422061527,1778539840000,-5800.0,0.00039857,14]
[422061526,1778539840000,-5800.0,0.00039849,14]
[422061529,1778539840000,-5800.0,0.00039875,14]
[422061520,1778539840000,-1562.0,0.00039726,30]
[422061531,1778539840000,-5800.0,0.00039892,14]
[422061608,1778539841000,-283.34,0.0004,120]
[422061605,1778539841000,-22499.99,0.0004,120]
[422061609,1778539841000,-699.48,0.0004,120]
[422061604,1778539841000,-1562.0,0.0004,30]
[422061606,1778539841000,-22500.0,0.0004,120]
[422061603,1778539841000,-171.29688013,0.00039999,45]
[422061601,1778539841000,-162.380719,0.00039999,41]
[422061600,1778539841000,-156.587,0.00039999,30]
[422061602,1778539841000,-168.3888056,0.00039999,43]
[422061621,1778539841000,-207.95743505,0.0004,67]
[422061607,1778539841000,-302.16,0.0004,120]
[422061611,1778539841000,-427.2,0.0004,120]
[422061627,1778539841000,-600.0,0.0004,120]
[422061612,1778539841000,-445.01,0.0004,120]
[422061613,1778539841000,-754.87,0.0004,120]
[422061614,1778539841000,-16958.78,0.0004,120]
[422061615,1778539841000,-428.41,0.0004,120]
[422061617,1778539841000,-668.31,0.0004,120]
[422061616,1778539841000,-22500.0,0.0004,120]
[422061618,1778539841000,-20609.29,0.0004,120]
[422061619,1778539841000,-152.0,0.0004,120]
[422061620,1778539841000,-20786.70739499,0.0004,120]
[422061622,1778539841000,-150.0,0.0004,120]
[422061626,1778539841000,-500.0,0.0004,120]
[422061625,1778539841000,-1119.0,0.0004,30]
[422061598,1778539841000,-196.59114265,0.00039999,45]
[422061610,1778539841000,-213.22,0.0004,120]
[422061595,1778539841000,-209.40437684,0.00039999,30]
[422061568,1778539841000,-156.587,0.00039999,30]
[422061593,1778539841000,-162.380719,0.00039999,41]
[422061624,1778539841000,-10111.78230676,0.0004,120]
[422061573,1778539841000,-152.0,0.00039999,30]
[422061574,1778539841000,-152.0,0.00039999,41]
[422061569,1778539841000,-666.72878,0.00039999,41]
[422061571,1778539841000,-259.15976462,0.00039999,41]
[422061570,1778539841000,-1235.18214925,0.00039999,50]
[422061572,1778539841000,-452.28344141,0.00039999,43]
[422061575,1778539841000,-152.0,0.00039999,43]
[422061577,1778539841000,-152.0,0.00039999,45]
[422061582,1778539841000,-500.0,0.00039999,45]
[422061584,1778539841000,-151.0,0.00039999,30]
[422061581,1778539841000,-1030.59322867,0.00039999,30]
[422061576,1778539841000,-500.0,0.00039999,30]
[422061580,1778539841000,-500.0,0.00039999,43]
[422061579,1778539841000,-152.0,0.00039999,50]
[422061578,1778539841000,-500.0,0.00039999,41]
[422061585,1778539841000,-151.0,0.00039999,41]
[422061583,1778539841000,-500.0,0.00039999,50]
[422061597,1778539841000,-1555.5,0.00039999,30]
[422061587,1778539841000,-151.0,0.00039999,43]
[422061586,1778539841000,-176.29,0.00039999,30]
[422061589,1778539841000,-151.0,0.00039999,45]
[422061588,1778539841000,-205.36717928,0.00039999,30]
[422061590,1778539841000,-156.587,0.00039999,30]
[422061596,1778539841000,-168.3888056,0.00039999,43]
[422061592,1778539841000,-182.81273,0.00039999,41]
[422061591,1778539841000,-151.0,0.00039999,50]
[422061594,1778539841000,-189.57680101,0.00039999,43]
[422061628,1778539841000,-500.0,0.0004,120]
[422061599,1778539841000,-203.86501493,0.00039999,50]
[422061634,1778539841000,-500.0,0.0004,120]
[422061662,1778539841000,-160.96,0.00040279,10]
[422061672,1778539841000,-5300.0,0.000404,14]
[422061673,1778539841000,-2478.10624053,0.00040427,28]
[422061663,1778539841000,-232.86,0.0004029,60]
[422061674,1778539841000,-10380.23561738,0.00040454,15]
[422061665,1778539841000,-370.78,0.0004029,60]
[422061661,1778539841000,-1562.0,0.00040274,30]
[422061664,1778539841000,-183.63,0.0004029,60]
[422061666,1778539841000,-1122.84,0.0004029,60]
[422061667,1778539841000,-4884.48,0.000403,14]
[422061671,1778539841000,-197.0,0.00040394,10]
[422061669,1778539841000,-3989.14,0.00040371,120]
[422061668,1778539841000,-567.65,0.00040324,120]
[422061670,1778539841000,-22500.0,0.00040375,120]
[422061675,1778539841000,-917.55,0.000405,30]
[422061677,1778539841000,-1000.0,0.00040521,5]
[422061680,1778539841000,-504.0,0.0004054,18]
[422061678,1778539841000,-1000.0,0.00040521,5]
[422061682,1778539841000,-1000.0,0.00040547,120]
[422061684,1778539841000,-151.0,0.00040547,30]
[422061688,1778539841000,-500.0,0.00040547,30]
[422061686,1778539841000,-500.0,0.00040547,30]
[422061694,1778539841000,-1030.0,0.00040547,30]
[422061690,1778539841000,-2117.13087634,0.00040547,30]
[422061695,1778539841000,-620.0,0.00040547,30]
[422061692,1778539841000,-5762.24692352,0.00040547,30]
[422061630,1778539841000,-500.0,0.0004,120]
[422061656,1778539841000,-16326.1821584,0.00040235,2]
[422061652,1778539841000,-500.0,0.0004023,30]
[422061676,1778539841000,-1000.0,0.000405,14]
[422061653,1778539841000,-212793.8662693,0.00040235,2]
[422061655,1778539841000,-28108.9975814,0.00040235,2]
[422061633,1778539841000,-500.0,0.0004,120]
[422061632,1778539841000,-500.0,0.0004,120]
[422061631,1778539841000,-500.0,0.0004,120]
[422061636,1778539841000,-500.0,0.0004,120]
[422061646,1778539841000,-6427.76337836,0.00040135,2]
[422061635,1778539841000,-500.0,0.0004,120]
[422061647,1778539841000,-799.53663524,0.00040135,2]
[422061637,1778539841000,-500.0,0.0004,120]
[422061639,1778539841000,-500.0,0.0004,120]
[422061643,1778539841000,-917.55,0.000401,30]
[422061641,1778539841000,-10380.23561738,0.00040008,15]
[422061644,1778539841000,-274.87667877,0.00040135,2]
[422061629,1778539841000,-500.0,0.0004,120]
[422061640,1778539841000,-206.82116762,0.0004,120]
[422061654,1778539841000,-6271.965132,0.00040235,2]
[422061638,1778539841000,-500.0,0.0004,120]
[422061658,1778539841000,-236.5488843,0.00040235,2]
[422061659,1778539841000,-255.83973053,0.00040242,2]
[422061650,1778539841000,-500.0,0.00040173,5]
[422061649,1778539841000,-33147.836,0.00040135,2]
[422061623,1778539841000,-161.0,0.0004,120]
[422061660,1778539841000,-156.8189,0.00040269,2]
[422061651,1778539841000,-417.19061879,0.00040192,2]
[422061648,1778539841000,-198.20883558,0.00040135,8]
[422061657,1778539841000,-60952.0135181,0.00040235,2]
[422061645,1778539841000,-11563.66687194,0.00040135,2]
[422061642,1778539841000,-3989.14,0.00040047,120]
[422061786,1778539842000,-200.0,0.0004075,19]
[422061769,1778539842000,-504.33965857,0.0004075,19]
[422061758,1778539842000,-219.0,0.00040738,60]
[422061752,1778539842000,-1000.0,0.000407,14]
[422061767,1778539842000,-198.0,0.0004075,120]
[422061750,1778539842000,-14273.3573,0.000407,120]
[422061763,1778539842000,-311.66,0.00040746,120]
[422061748,1778539842000,-456.39990709,0.000407,12]
[422061746,1778539842000,-200.0,0.000407,17]
[422061765,1778539842000,-182.15,0.0004075,120]
[422061760,1778539842000,-237.70895385,0.00040743,120]
[422061754,1778539842000,-167.85245578,0.000407,60]
[422061773,1778539842000,-151.0,0.0004075,19]
[422061771,1778539842000,-500.0,0.0004075,19]
[422061775,1778539842000,-500.0,0.0004075,19]
[422061788,1778539842000,-252.10967032,0.0004075,19]
[422061780,1778539842000,-1280.88388878,0.0004075,19]
[422061791,1778539842000,-200.0,0.0004075,19]
[422061782,1778539842000,-151.0,0.0004075,19]
[422061793,1778539842000,-200.0,0.0004075,19]
[422061745,1778539842000,-27182.80164814,0.00040699,2]
[422061756,1778539842000,-500.0,0.00040738,60]
[422061778,1778539842000,-200.0,0.0004075,19]
[422061720,1778539842000,-151.0,0.00040547,30]
[422061743,1778539842000,-3989.14,0.00040696,120]
[422061784,1778539842000,-500.0,0.0004075,19]
[422061697,1778539842000,-151.0,0.00040547,30]
[422061699,1778539842000,-152.0,0.00040547,30]
[422061701,1778539842000,-500.0,0.00040547,30]
[422061704,1778539842000,-1000.0,0.00040547,30]
[422061708,1778539842000,-165.29230854,0.00040547,30]
[422061706,1778539842000,-151.0,0.00040547,30]
[422061710,1778539842000,-170.0,0.00040547,30]
[422061718,1778539842000,-1500.0,0.00040547,30]
[422061714,1778539842000,-151.0,0.00040547,30]
[422061729,1778539842000,-6427.76337836,0.0004058,2]
[422061703,1778539842000,-314.27964716,0.00040547,30]
[422061712,1778539842000,-251.0,0.00040547,30]
[422061725,1778539842000,-274.87667876,0.00040579,2]
[422061727,1778539842000,-11563.66687193,0.00040579,2]
[422061723,1778539842000,-1562.0,0.00040548,30]
[422061733,1778539842000,-1000.0,0.000406,14]
[422061739,1778539842000,-1865.36488657,0.00040684,5]
[422061731,1778539842000,-161.0,0.000406,120]
[422061735,1778539842000,-1444.0,0.00040658,120]
[422061741,1778539842000,-1934.38338737,0.00040684,5]
[422061737,1778539842000,-3785.33,0.00040676,2]
[422061716,1778539842000,-151.0,0.00040547,30]
[422061795,1778539842000,-200.0,0.0004075,19]
[422061852,1778539842000,-152.0,0.0004075,19]
[422061800,1778539842000,-152.0,0.0004075,19]
[422061797,1778539842000,-152.0,0.0004075,19]
[422061871,1778539842000,-225.18697531,0.0004075,19]
[422061860,1778539842000,-152.0,0.0004075,19]
[422061862,1778539842000,-209.40437684,0.0004075,19]
[422061868,1778539842000,-151.0,0.0004075,19]
[422061873,1778539842000,-151.0,0.0004075,19]
[422061866,1778539842000,-217.15233878,0.0004075,19]
[422061864,1778539842000,-151.0,0.0004075,19]
[422061875,1778539842000,-151.0,0.0004075,19]
[422061880,1778539842000,-151.0,0.0004075,19]
[422061877,1778539842000,-151.0,0.0004075,19]
[422061881,1778539842000,-151.0,0.0004075,19]
[422061883,1778539842000,-634.85,0.0004075,120]
[422061886,1778539842000,-400.0,0.0004077,3]
[422061888,1778539842000,-27182.80164814,0.00040772,2]
[422061891,1778539842000,-4448832.52909056,0.00040774,2]
[422061890,1778539842000,-500.0,0.00040773,5]
[422061892,1778539842000,-324.9025538,0.00040774,2]
[422061889,1778539842000,-500.0,0.00040773,5]
[422061894,1778539842000,-1250.51494751,0.00040774,2]
[422061893,1778539842000,-764.8018764,0.00040774,2]
[422061856,1778539842000,-201.93286099,0.0004075,19]
[422061854,1778539842000,-228.02704618,0.0004075,19]
[422061858,1778539842000,-151.0,0.0004075,19]
[422061848,1778539842000,-194.72792766,0.0004075,19]
[422061802,1778539842000,-152.0,0.0004075,19]
[422061807,1778539842000,-152.0,0.0004075,19]
[422061813,1778539842000,-152.0,0.0004075,19]
[422061811,1778539842000,-152.0,0.0004075,19]
[422061804,1778539842000,-500.0,0.0004075,19]
[422061809,1778539842000,-500.0,0.0004075,19]
[422061817,1778539842000,-152.0,0.0004075,19]
[422061838,1778539842000,-211.40802048,0.0004075,19]
[422061820,1778539842000,-151.0,0.0004075,19]
[422061824,1778539842000,-152.0,0.0004075,19]
[422061822,1778539842000,-151.0,0.0004075,19]
[422061816,1778539842000,-152.0,0.0004075,19]
[422061828,1778539842000,-151.0,0.0004075,19]
[422061836,1778539842000,-152.0,0.0004075,19]
[422061826,1778539842000,-174.61919141,0.0004075,19]
[422061840,1778539842000,-187.78006525,0.0004075,19]
[422061846,1778539842000,-219.23011724,0.0004075,19]
[422061850,1778539842000,-151.0,0.0004075,19]
[422061844,1778539842000,-152.0,0.0004075,19]
[422061842,1778539842000,-151.0,0.0004075,19]
[422061832,1778539842000,-181.08010149,0.0004075,19]
[422061830,1778539842000,-152.0,0.0004075,19]
[422061834,1778539842000,-151.0,0.0004075,19]
[422061896,1778539843000,-200.0,0.00032239,2]
[422061899,1778539843000,-802.927,0.00037036,2]
[422061897,1778539843000,-350.0,0.00033197,5]
[422061895,1778539843000,-200.0,0.0003128,2]
[422061898,1778539843000,-300.0,0.00037036,2]
[422061900,1778539843000,-314.21515031,0.00037036,2]
[422061902,1778539843000,-255.0,0.00039737,30]
[422061909,1778539843000,-300.0,0.00037036,2]
[422061903,1778539843000,-799.53663524,0.0004058,2]
[422061910,1778539843000,-52.50660242,0.00039841,14]
[422061906,1778539843000,-4911.37788427,0.00040774,2]
[422061907,1778539843000,-212373.45017151,0.00040774,2]
[422061901,1778539843000,-2382.99235459,0.00038674,2]
[422061904,1778539843000,-199151.532925,0.00040774,2]
[422061905,1778539843000,-5302.28067972,0.00040774,2]
[422061908,1778539843000,-1650.61375639,0.00040774,2]
[422061916,1778539847000,-300.0,0.00037036,2]
[422061919,1778539883000,2500.0,0.00027397,120]
[422061920,1778539884000,1500.0,0.000271,120]
[422061921,1778540167000,555.0,0.00027397,120]
[422061923,1778540181000,180.78011544,0.0001,30]
[422061922,1778540181000,166.73887864,0.0001,30]
[422061924,1778540187000,155.0,0.00027397,120]
[422061925,1778540225000,300.0,0.0002,30]
[422061926,1778540286000,301.61831471,0.0002,30]
[422061927,1778540318000,184.27,0.00026647,120]
[422061931,1778540495000,10000.01,0.00015,2]
[422061930,1778540495000,10000.01,0.00015,2]
[422061933,1778540531000,1517.01536301,0.00022,30]
[422061935,1778540570000,1713.07485422,0.000209,30]
[422061934,1778540570000,8881.25254321,0.000209,30]
[422061936,1778540819000,700.0,0.000108,3]
[422061937,1778540821000,1500.0,0.000109,3]
[422061938,1778540881000,500.0,0.000108,3]
[422061939,1778540883000,1100.0,0.000109,3]
[422061946,1778541031000,-47045.55336297,9.04e-05,2]
[422061947,1778541031000,-781.95418243,9.04e-05,2]
[422061948,1778541031000,-344.0,9.04e-05,2]
[422061945,1778541031000,-300.0,9.039e-05,2]
[422061973,1778541037000,-1055501.39187135,0.000107,2]
[422061971,1778541037000,-375678.66958029,0.000107,2]
[422061972,1778541037000,-26457.05151672,0.000107,2]
[422061970,1778541037000,-500.0,0.00010699,2]
[422061969,1778541037000,-500.0,0.00010699,2]
[422061967,1778541037000,-615.66127145,0.00010699,2]
[422061965,1778541037000,-500.0,0.00010699,2]
[422061968,1778541037000,-500.0,0.00010699,2]
[422061966,1778541037000,-500.0,0.00010699,2]
[422061964,1778541037000,-500.0,0.00010699,2]
[422061961,1778541037000,-182.23957928,0.00010699,2]
[422061958,1778541037000,-150.0,0.0001,2]
[422061962,1778541037000,-500.0,0.00010699,2]
[422061959,1778541037000,-270.00142481,0.0001,2]
[422061960,1778541037000,-228.95727064,0.00010699,2]
[422061956,1778541037000,-420.0,9.943e-05,2]
[422061954,1778541037000,-873.55415368,9.04e-05,2]
[422061963,1778541037000,-500.0,0.00010699,2]
[422061974,1778541037000,-587.0,0.00010937,2]
[422061955,1778541037000,-300.0,9.943e-05,2]
[422061977,1778541037000,-714.89770637,0.0001174,2]
[422061976,1778541037000,-714.89770637,0.00011288,2]
[422061995,1778541037000,-2500.0,0.00014592,2]
[422061994,1778541037000,-1600.0,0.000145,5]
[422061992,1778541037000,-714.89770637,0.00014449,2]
[422061993,1778541037000,-2200.0,0.000145,5]
[422061990,1778541037000,-714.89770637,0.00013997,2]
[422061991,1778541037000,-151.27,0.00014156,2]
[422061989,1778541037000,-167.46,0.00013665,2]
[422061987,1778541037000,-150.18693024,0.00013488,2]
[422061988,1778541037000,-714.89770637,0.00013546,2]
[422061957,1778541037000,-10473.29995244,0.0001,2]
[422061984,1778541037000,-274.97,0.00013259,2]
[422061985,1778541037000,-1218.78,0.00013274,2]
[422061982,1778541037000,-151.27,0.00013015,2]
[422061983,1778541037000,-714.89770637,0.00013094,2]
[422061981,1778541037000,-714.89770637,0.00012643,2]
[422061986,1778541037000,-500.0,0.00013352,2]
[422061980,1778541037000,-714.89770637,0.00012191,2]
[422061978,1778541037000,-151.27,0.00011874,2]
[422061979,1778541037000,-668.0,0.00012031,2]
[422061975,1778541037000,-714.89770644,0.00011099,2]
[422062016,1778541038000,-714.89770637,0.000149,2]
[422062012,1778541038000,-1415.90577924,0.000149,2]
[422062010,1778541038000,-500.0,0.000148,5]
[422062014,1778541038000,-700.0,0.000149,5]
[422061997,1778541038000,-3000.0,0.000146,5]
[422062006,1778541038000,-2700.0,0.000147,5]
[422062004,1778541038000,-3800.0,0.000147,5]
[422062018,1778541038000,-500.0,0.000149,5]
[422061999,1778541038000,-2200.0,0.000146,5]
[422062008,1778541038000,-700.0,0.000148,5]
[422062021,1778541038000,-274.87667877,0.000149,2]
[422062002,1778541038000,-568.441,0.000147,2]
[422062023,1778541038000,-227.38053695,0.000149,2]
[422062025,1778541038000,-6427.76337836,0.000149,2]
[422062030,1778541038000,-1218.78,0.00014933,2]
[422062027,1778541038000,-11563.66687194,0.000149,2]
[422062036,1778541038000,-500.0,0.00014973,2]
[422062045,1778541038000,-602376.24810972,0.00015,2]
[422062034,1778541038000,-2184.0,0.00014959,2]
[422062041,1778541038000,-500.0,0.00014973,2]
[422062038,1778541038000,-500.0,0.00014973,2]
[422062043,1778541038000,-500.0,0.00014973,2]
[422062050,1778541038000,-500.67109167,0.00015,2]
[422062047,1778541038000,-5935524.0949283,0.00015,2]
[422062032,1778541038000,-170.29,0.00014954,2]
[422062792,1778541044000,500.0,0.00027397,120]
[422063086,1778541046000,-340.4511157,0.000149,2]
[422063084,1778541046000,-236.5488843,0.00014209,2]
[422063490,1778541061000,-459.08551954,0.000149,2]
[422063491,1778541074000,-10000.01,0.00015,2]
[422063493,1778541098000,-2830.65459156,0.00012643,2]
[422063492,1778541098000,-217.56841371,0.00010699,2]
[422063494,1778541098000,-6951.78699473,0.00012643,2]
[422063498,1778541133000,-1073.74788351,0.000149,2]
[422063496,1778541133000,-1191.23760992,0.00012643,2]
[422063497,1778541133000,-2797.75145207,0.00012643,2]
[422063495,1778541133000,-4937.2730545,0.00012643,2]
[422063499,1778541134000,-3500.3818687,0.00014209,2]
[422063501,1778541134000,-179.02327254,0.000149,2]
[422063500,1778541134000,-1257.86791326,0.000149,2]
[422063504,1778541157000,-918.96203819,0.00015,2]
[422063503,1778541157000,-4018.31101631,0.000149,2]
[422063502,1778541157000,-4937.2730545,0.000149,2]
[422063507,1778541158000,-8118.05185109,0.00015,2]
[422063505,1778541158000,-300.0,0.00013907,2]
[422063506,1778541158000,-537.53221972,0.00014999,2]
[422063513,1778541182000,-500.0,0.00010699,2]
[422063508,1778541182000,-500.0,0.00010699,2]
[422063509,1778541182000,-500.0,0.00010699,2]
[422063512,1778541182000,-500.0,0.00010699,2]
[422063510,1778541182000,-500.0,0.00010699,2]
[422063517,1778541182000,-279.86559509,0.00010699,2]
[422063514,1778541182000,-379.73898754,0.00010699,2]
[422063511,1778541182000,-500.0,0.00010699,2]
[422063518,1778541182000,-9720.14440491,0.00015,2]
[422063516,1778541182000,61000.0,0.00027397,120]
[422063515,1778541182000,-5575.84508327,0.00015,2]
[422063519,1778541194000,-10000.01,0.00015,2]
[422063520,1778541195000,-10000.01,0.00015,2]
[422063522,1778541269000,222.33,0.00027397,120]
[422063523,1778541315000,156.73307116,0.00014405,21]
[422063524,1778541319000,234.822068,0.00025926,120]
[422063526,1778541322000,261.992979,0.00025926,120]
[422063525,1778541322000,252.80293,0.00025926,120]
[422063527,1778541495000,1295.066,0.00027397,120]
[422063529,1778541592000,159.9,8.282e-05,2]
[422063528,1778541592000,159.9,7.883e-05,2]
[422063530,1778541593000,159.9,8.68e-05,2]
[422063531,1778541782000,2500.0,0.00027397,120]
[422063532,1778542087000,460.3382855,0.00027397,120]
[422063551,1778542231000,-1274.65,0.00012841,2]
[422063544,1778542231000,-159.9,0.00011471,2]
[422063545,1778542231000,-159.9,0.00011869,2]
[422063547,1778542231000,-3053.67,0.00012663,2]
[422063543,1778542231000,-27.25496134,0.00011072,2]
[422063542,1778542231000,-132.64503866,0.00011072,2]
[422063541,1778542231000,-185.3454044,0.00010699,2]
[422063552,1778542231000,-1200.0,0.00012851,2]
[422063540,1778542231000,-159.9,0.00010674,2]
[422063550,1778542231000,-150.0,0.00012748,2]
[422063538,1778542231000,-250.0,9.987e-05,2]
[422063536,1778542231000,-159.9,9.478e-05,2]
[422063537,1778542231000,-159.9,9.876e-05,2]
[422063535,1778542231000,-196.0,9.317e-05,2]
[422063534,1778542231000,-221.31443113,9.225e-05,2]
[422063533,1778542231000,-159.9,9.079e-05,2]
[422063539,1778542231000,-159.9,0.00010275,2]
[422063548,1778542231000,-159.9,0.00012667,2]
[422063546,1778542231000,-159.9,0.00012268,2]
[422063564,1778542231000,-287.0,0.00014095,2]
[422063570,1778542231000,-452.04785907,0.0001445,2]
[422063567,1778542231000,-314.55,0.00014308,2]
[422063565,1778542231000,-1680.0,0.00014136,2]
[422063566,1778542231000,-159.9,0.00014261,2]
[422063549,1778542231000,-314.55,0.00012718,2]
[422063568,1778542231000,-11269.0524083,0.0001445,2]
[422063571,1778542231000,-500.0,0.0001445,2]
[422063561,1778542231000,-200.0,0.00013699,2]
[422063559,1778542231000,-166.66,0.00013394,2]
[422063569,1778542231000,-35006.48571645,0.0001445,2]
[422063555,1778542231000,-2838.71,0.00012852,2]
[422063563,1778542231000,-250.0,0.00014,2]
[422063562,1778542231000,-159.9,0.00013863,2]
[422063554,1778542231000,-571.59,0.00012852,2]
[422063558,1778542231000,-2000.0,0.00013135,2]
[422063553,1778542231000,-300.0,0.00012851,2]
[422063556,1778542231000,-200.0,0.00012938,2]
[422063560,1778542231000,-159.9,0.00013464,2]
[422063557,1778542231000,-159.9,0.00013065,2]
[422063592,1778542232000,-1284.32021714,0.00014777,2]
[422063601,1778542232000,-357.52947459,0.0001499,2]
[422063591,1778542232000,-715.67978286,0.00014777,2]
[422063584,1778542232000,-1800.0,0.0001445,2]
[422063581,1778542232000,-2869.85911231,0.0001445,2]
[422063588,1778542232000,-51245.40840287,0.0001445,2]
[422063576,1778542232000,-24584.9981981,0.0001445,2]
[422063578,1778542232000,-1200.0,0.0001445,2]
[422063574,1778542232000,-977.0,0.0001445,2]
[422063602,1778542232000,-500.0,0.00014999,2]
[422063589,1778542232000,-3998.80495909,0.0001445,2]
[422063590,1778542232000,-159.9,0.0001466,2]
[422063575,1778542232000,-3200.98862681,0.0001445,2]
[422063595,1778542232000,-746.25,0.00014959,2]
[422063593,1778542232000,-300.0,0.000148,5]
[422063608,1778542232000,-1150.0,0.00015,2]
[422063607,1778542232000,-1046.42972454,0.00015,2]
[422063606,1778542232000,-42375.51038882,0.00015,2]
[422063603,1778542232000,-411.28055966,0.00014999,2]
[422063604,1778542232000,-195.90591656,0.00014999,2]
[422063605,1778542232000,-375.52655417,0.00014999,2]
[422063600,1778542232000,-500.0,0.00014973,2]
[422063598,1778542232000,-396.70170545,0.00014973,2]
[422063594,1778542232000,-600.0,0.000149,5]
[422063597,1778542232000,-500.0,0.00014973,2]
[422063596,1778542232000,-159.13087506,0.00014959,2]
[422063599,1778542232000,-500.0,0.00014973,2]
[422063613,1778542237000,-32092.92380125,0.00015,2]
[422063611,1778542237000,-20197.1028935,0.00015,2]
[422063612,1778542237000,-449.3404125,0.00015,2]
[422063614,1778542237000,-1031680.609463,0.00015,2]
[422063615,1778542237000,-200.0,0.0001504,2]
[422063616,1778542237000,-500.0,0.0001504,2]
[422063617,1778542237000,-500.0,0.0001504,2]
[422063619,1778542237000,-500.0,0.0001504,2]
[422063618,1778542237000,-151.0,0.0001504,2]
[422063668,1778542238000,-480.0,0.00015549,2]
[422063646,1778542238000,-151.0,0.0001504,2]
[422063648,1778542238000,-500.0,0.0001504,2]
[422063652,1778542238000,-500.0,0.0001504,2]
[422063654,1778542238000,-500.0,0.0001504,2]
[422063658,1778542238000,-500.0,0.0001504,2]
[422063656,1778542238000,-500.0,0.0001504,2]
[422063657,1778542238000,-500.0,0.0001504,2]
[422063655,1778542238000,-500.0,0.0001504,2]
[422063659,1778542238000,-500.0,0.0001504,2]
[422063663,1778542238000,-159.9,0.00015457,2]
[422063662,1778542238000,-414.76,0.00015355,2]
[422063671,1778542238000,-166.66,0.00015604,2]
[422063661,1778542238000,-159.9,0.00015059,2]
[422063664,1778542238000,-150.0,0.00015473,2]
[422063666,1778542238000,-1000.0,0.00015521,2]
[422063667,1778542238000,-501.41294965,0.00015524,2]
[422063665,1778542238000,-360.51809031,0.00015521,2]
[422063675,1778542238000,-150.0,0.00016052,2]
[422063669,1778542238000,-200.0,0.00015588,2]
[422063674,1778542238000,-300.0,0.00016,2]
[422063672,1778542238000,-150.0,0.0001574,2]
[422063647,1778542238000,-500.0,0.0001504,2]
[422063673,1778542238000,-314.55,0.00015898,2]
[422063670,1778542238000,-2338.02,0.00015589,2]
[422063660,1778542238000,-500.0,0.0001504,2]
[422063649,1778542238000,-151.0,0.0001504,2]
[422063641,1778542238000,-151.0,0.0001504,2]
[422063650,1778542238000,-500.0,0.0001504,2]
[422063620,1778542238000,-151.0,0.0001504,2]
[422063621,1778542238000,-500.0,0.0001504,2]
[422063627,1778542238000,-151.0,0.0001504,2]
[422063623,1778542238000,-500.0,0.0001504,2]
[422063624,1778542238000,-151.0,0.0001504,2]
[422063626,1778542238000,-500.0,0.0001504,2]
[422063622,1778542238000,-151.0,0.0001504,2]
[422063625,1778542238000,-284.32233892,0.0001504,2]